Cogmind - Beta 14 @@@ ROGUE MODE // 2025.03.01 @ 14:14:55 Player: CanadianCogs Result: Destroyed by G-34 Mercenary with Small Laser Performance ------------- Evolutions (0) 0 Regions Visited (4) 800 Robots Destroyed (14) 70 Value Destroyed (211) 211 Prototype IDs (1) 20 Alien Tech Used (0) 0 Bonus (300) 300 TOTAL SCORE: 1401 Bonus ------- Aligned with FarCom 300 Cogmind --------- Core Integrity 0/250 Matter 48/300 Energy 98/100 System Corruption 0% Temperature Cool (6) Movement Core (50) Location -9/Mines Parts ------- > --- POWER (1) -------- (None) > --- PROPULSION (2) --- (None) > --- UTILITY (2) ------ (None) > --- WEAPON (2) ------- (None) > --- INVENTORY (5) ---- Flying Fortress v7 ECM Suite Peak State ------------ > --- POWER ------------ Ion Engine > --- PROPULSION ------- Hover Unit Hover Unit > --- UTILITY ---------- Small Storage Unit Seismic Detector > --- WEAPON ----------- Light Cannon Light Cannon > --- INVENTORY -------- Flying Fortress v7 Heat Sink ECM Suite Small Laser Assault Rifle [Rating: 10] Favorites ----------- Power Ion Engine Engine Ion Engine Propulsion Compact Wheel Wheel Compact Wheel Hover Unit Hover Unit Utility Small Storage Unit Device Seismic Detector Storage Small Storage Unit Weapon Light Cannon Energy Gun Small Laser Ballistic Gun Assault Rifle Ballistic Cannon Light Cannon Build | -11 -10 -10 -10 -9 ------- Run | Yrd Mat Min Exi Min Slots Evolved . | . . . . . Power . | . . . . . Propulsion . | . . . . . Utility . | . . . . . Weapon . | . . . . . Parts Attached 16 | 7 4 . 3 2 Power 1 | 1 . . . . Engine 1 | 1 . . . . Core . | . . . . . Reactor . | . . . . . Propulsion 4 | 2 . . 2 . Treads . | . . . . . Leg . | . . . . . Wheel 2 | 2 . . . . Hover 2 | . . . 2 . Flight . | . . . . . Utility 3 | 2 . . 1 . Device 2 | 1 . . 1 . Storage 1 | 1 . . . . Processor . | . . . . . Hackware . | . . . . . Protection . | . . . . . Artifact . | . . . . . Weapon 8 | 2 4 . . 2 Energy Gun 2 | . 1 . . 1 Energy Cannon . | . . . . . Ballistic Gun 4 | 2 1 . . 1 Ballistic Cannon 2 | . 2 . . . Launcher . | . . . . . Special Weapon . | . . . . . Impact Weapon . | . . . . . Slashing Weapon . | . . . . . Piercing Weapon . | . . . . . Special Melee Weapon . | . . . . . Unidentified Prototypes 1 | . . . 1 . Parts Lost 6 | . 1 . . 5 Power 1 | . . . . 1 Propulsion 2 | . 1 . . 1 Utility 1 | . . . . 1 Weapon 2 | . . . . 2 Highest Loss Streak 4 | . 1 . . 4 To Critical Strikes . | . . . . . Average Slot Usage (%) 86 | . 94 85 91 66 Engine 13 | . 14 14 14 12 Wheel 12 | . 22 14 7 . Hover 7 | . . . 12 17 Device 12 | . 14 14 14 4 Storage 13 | . 14 14 14 13 Ballistic Gun 9 | . 23 . . 8 Ballistic Cannon 15 | . 4 28 28 8 Peak Build Rating 10 | 7 7 6 10 10 Average Rating 6 | 4 6 6 7 7 On Entrance 5 | . 7 6 6 10 Naked Turns 8 | . . . . 8 Heaviest Build 17 | 14 17 17 17 17 Greatest Support 32 | 32 32 16 16 12 Greatest Overweight (x) 1 | . 1 1 1 1 Average Overweight (x) . | . . 1 . . Largest Inventory Capacity 8 | 8 8 8 8 8 Average Capacity 7 | 7 8 8 8 7 Most Carried 8 | 3 8 8 8 8 Average Carried 6 | . 5 8 7 7 Final Capacity 8 | 8 8 8 8 5 Final Carried 8 | . 8 8 8 5 Class Distribution -------------------- 100% | Mutant Dominant Class ---------------- Mutant | -10/Materials Mutant | -10/Mines Mutant | -10/Exiles Mutant | -9/Mines Resources | -11 -10 -10 -10 -9 ----------- Run | Yrd Mat Min Exi Min Matter Collected 329 | 107 222 . . . Remotely . | . . . . . Salvage Created 374 | 132 222 16 . 4 Parts 31 | 8 20 3 . . Haulers Intercepted . | . . . . . Recyclers Shooed 1 | 1 . . . . Parts Field Recycled . | . . . . . Retrieved Matter . | . . . . . Parts Self-Destructed . | . . . . . Prevented . | . . . . . Kills | -11 -10 -10 -10 -9 ------- Run | Yrd Mat Min Exi Min Combat Hostiles Destroyed 9 | . 6 2 . 1 Guns 6 | . 6 . . . Cannons 3 | . . 2 . 1 Classes Destroyed 6 | 2 3 . . 1 Tunneler 3 | 3 . . . . Recycler 2 | 1 1 . . . Operator 1 | . 1 . . . Swarmer 5 | . 3 2 . . Grunt 3 | . 3 . . . Assembled 1 | . . . . 1 Best Kill Streak 5 | 4 5 2 . 1 Combat Bots Only 3 | . 3 2 . 1 Max Kills in Single Turn 1 | 1 1 1 . 1 Gunslinging . | . . . . . Exploded . | . . . . . Melee . | . . . . . Uniques/NPCs Destroyed . | . . . . . Combat | -11 -10 -10 -10 -9 -------- Run | Yrd Mat Min Exi Min Hostile Shots Fired 105 | . 44 8 . 53 Missed 32 | . 16 4 . 12 Damage Taken 888 | . 274 32 . 582 Core 255 | . 77 10 . 168 Absorbed by Shields . | . . . . . Core Remaining (%) 100 | 100 . . . . Volleys Fired 53 | 9 24 4 . 16 Largest 2 | 2 2 2 . 2 Hottest 70 | 40 70 70 . 70 Shots Fired 98 | 18 48 8 . 24 Gun 78 | 18 46 . . 14 Cannon 20 | . 2 8 . 10 Launcher . | . . . . . Special . | . . . . . Kinetic 95 | 18 48 8 . 21 Thermal 3 | . . . . 3 Explosive . | . . . . . Electromagnetic . | . . . . . Robot Hit Streak 9 | 9 7 5 . 5 Robot Miss Streak 4 | 1 3 1 . 4 Penetration Max . | . . . . . Secondary Targets . | . . . . . Shots Hit Robots 61 | 13 29 6 . 13 Core Hits 26 | 8 11 2 . 5 Critical Kills . | . . . . . Critical Parts Destroyed 1 | . 1 . . . Critical Strikes 2 | . 1 1 . . Destroy 1 | . 1 . . . Blast 1 | . . 1 . . Melee Attacks . | . . . . . Impact . | . . . . . Slashing . | . . . . . Piercing . | . . . . . Sneak Attacks . | . . . . . Combat Hostiles . | . . . . . Follow-up Attacks . | . . . . . Damage Inflicted 751 | 155 306 109 . 181 Guns 558 | 155 291 . . 112 Cannons 193 | . 15 109 . 69 Explosions . | . . . . . Melee . | . . . . . Ramming . | . . . . . Kinetic 717 | 155 306 109 . 147 Thermal 34 | . . . . 34 Explosive . | . . . . . Electromagnetic . | . . . . . Impact . | . . . . . Slashing . | . . . . . Piercing . | . . . . . Highest Corruption . | . . . . . Average Corruption . | . . . . . Corruption Purged . | . . . . . Corruption Blocked . | . . . . . Overload Shots . | . . . . . Overflow Damage 17 | . . 17 . . Projectiles 17 | . . 17 . . Explosions . | . . . . . Melee . | . . . . . Knockbacks 3 | . . . . 3 Impact . | . . . . . Kinetic 3 | . . . . 3 Secondary . | . . . . . Self-Inflicted Damage . | . . . . . Shots . | . . . . . Rammed . | . . . . . Targets Rammed . | . . . . . Kicked . | . . . . . Crushed . | . . . . . Highest Temperature 60 | . 12 36 . 60 Average Temperature 20 | . 8 19 . 30 Received Heat Transfer 207 | . 96 . . 111 Siege Activations . | . . . . . Robots Corrupted . | . . . . . Combat Hostiles . | . . . . . Parts Fried . | . . . . . Impact Corruptions . | . . . . . Robots Melted . | . . . . . Combat Hostiles . | . . . . . Parts Melted . | . . . . . Heat Transferred 75 | . . . . 75 Parts Sabotaged . | . . . . . Parts Stolen . | . . . . . Parts Stripped . | . . . . . Power Chain Reactions . | . . . . . Alert | -11 -10 -10 -10 -9 ------- Run | Yrd Mat Min Exi Min Peak Influence 209 | 20 209 169 . 30 Initial 81 | . 13 81 . . Average 83 | 5 116 151 . 11 Maximum Alert Level 1 | . 1 . . . Low Security (%) 95 | 100 90 100 . 100 Level 1 4 | . 9 . . . Level 2 . | . . . . . Level 3 . | . . . . . Level 4 . | . . . . . Level 5 . | . . . . . High Security . | . . . . . Max Security . | . . . . . Squads Dispatched 5 | . 4 1 . . Investigation 5 | . 4 1 . . Extermination . | . . . . . Reinforcement . | . . . . . Assault . | . . . . . Garrison . | . . . . . Intercept . | . . . . . Searches Triggered . | . . . . . Construction Impeded . | . . . . . Haulers Reinforced . | . . . . . Active Scanning Responses . | . . . . . Cargo Convoy Interrupts . | . . . . . Stealth | -11 -10 -10 -10 -9 --------- Run | Yrd Mat Min Exi Min Distress Signals 1 | . 1 . . . Communications Jammed . | . . . . . Distress Signals . | . . . . . Times Spotted 20 | . 7 4 . 9 Peak Tracking Total 14 | . 3 3 . 14 Tactical Retreats 1 | . . 1 . . Traps | -11 -10 -10 -10 -9 ------- Run | Yrd Mat Min Exi Min Traps Triggered 1 | . 1 . . . Indirectly . | . . . . . Trap Hack Attempts . | . . . . . Triggered . | . . . . . Disarmed . | . . . . . Reprogrammed . | . . . . . Reused . | . . . . . Traps Extracted . | . . . . . Installed . | . . . . . Triggered . | . . . . . Machines | -11 -10 -10 -10 -9 ---------- Run | Yrd Mat Min Exi Min Machines Disabled 1 | . . . . 1 Max in Single Turn 1 | . . . . 1 Machines Repaired . | . . . . . Machines Dismantled . | . . . . . Machines Sabotaged . | . . . . . Overloaded Fab Kills . | . . . . . Hacking | -11 -10 -10 -10 -9 --------- Run | Yrd Mat Min Exi Min Machines Accessed 5 | . 4 1 . . Terminals 5 | . 4 1 . . Fabricators . | . . . . . Repair Stations . | . . . . . Recycling Units . | . . . . . Scanalyzers . | . . . . . Garrison Access . | . . . . . Total Hacks 16 | . 13 3 . . Successful 7 | . 5 2 . . Failed 9 | . 8 1 . . Catastrophic 3 | . 3 . . . Database Lockouts . | . . . . . Manual 16 | . 13 2 1 . Terminals 16 | . 13 3 . . Fabricators . | . . . . . Repair Stations . | . . . . . Recycling Units . | . . . . . Scanalyzers . | . . . . . Garrison Access . | . . . . . Terminal Hacks 3 | . 2 1 . . Robot Analysis 1 | . 1 . . . Level Access Points 1 | . . 1 . . Registered Components 1 | . 1 . . . Fabricator Hacks . | . . . . . Repair Station Hacks . | . . . . . Recycling Unit Hacks . | . . . . . Scanalyzer . | . . . . . Garrison Access Hacks . | . . . . . Unauthorized Hacks 4 | . 3 1 . . Terminals 4 | . 3 1 . . Botnet 4 | . 3 1 . . Fabricators . | . . . . . Repair Stations . | . . . . . Recycling Units . | . . . . . Scanalyzers . | . . . . . Garrison Access . | . . . . . Data Cores Recovered 1 | . 1 . . . Used 1 | . 1 . . . Hacking Detections 5 | . 4 1 . . Full Trace Events 4 | . 3 1 . . Feedback Events . | . . . . . Feedback Blocked . | . . . . . Robot Schematics Acquired . | . . . . . Robots Built . | . . . . . Authchips . | . . . . . Time . | . . . . . Total Robot Build Rating . | . . . . . Part Schematics Acquired . | . . . . . Parts Built . | . . . . . Authchips . | . . . . . Time . | . . . . . Total Part Build Rating . | . . . . . Parts Repaired . | . . . . . Time . | . . . . . Parts Recycled . | . . . . . Recycled Matter . | . . . . . Retrieved Matter . | . . . . . Retrieved Components . | . . . . . Parts Scanalyzed . | . . . . . Part Schematics Acquired . | . . . . . Parts Damaged . | . . . . . Bothacking | -11 -10 -10 -10 -9 ------------ Run | Yrd Mat Min Exi Min Used RIF Installer . | . . . . . Robots Hacked . | . . . . . Non-combat . | . . . . . Combat . | . . . . . Robot Hacks Applied . | . . . . . Relay Couplers Released . | . . . . . Fabnet Peak Effective % . | . . . . . Robots Rewired . | . . . . . Allies Hacked . | . . . . . Hacks Repelled . | . . . . . Allies | -11 -10 -10 -10 -9 -------- Run | Yrd Mat Min Exi Min Total Allies . | . . . . . Largest Group . | . . . . . Highest-Rated Group . | . . . . . Highest-Rated Ally . | . . . . . Total Orders . | . . . . . Ally Attacks . | . . . . . Total Damage . | . . . . . Kills . | . . . . . Allies Corrupted . | . . . . . Allies Melted . | . . . . . Intel | -11 -10 -10 -10 -9 ------- Run | Yrd Mat Min Exi Min Robot Analysis Total 1 | . 1 . . . Derelict Logs Recovered . | . . . . . Drone Launches . | . . . . . Drone Recoveries . | . . . . . Exploration | -11 -10 -10 -10 -9 ------------- Run | Yrd Mat Min Exi Min Turns Passed 954 | 77 295 133 267 182 Spaces Moved 687 | 44 189 104 226 124 Core 30 | 12 . . . 18 Treads . | . . . . . Legs . | . . . . . Wheels 450 | 32 189 104 125 . Hover 207 | . . . 101 106 Flight . | . . . . . Fastest Speed 50 | 50 100 115 100 50 Average Speed 108 | 86 102 115 115 108 Slowest Speed 120 | 100 115 115 116 120 Overloaded Moves . | . . . . . Propulsion Burnouts . | . . . . . Robots Hopped . | . . . . . Cave-ins Triggered . | . . . . . Time Travels 1 | . . . 1 . Exploration Rate (%) 36 | 4 34 43 61 40 Regions Visited 4 Branch Regions 3 Pre-discovered Areas . | . . . . . Known Exits Taken . | . . . . . Unknown Exits Taken 4 | 1 1 1 1 . Scrap Searched . | . . . . . Spaces Dug . | . . . . . Terrain Destroyed 1 | . . . . 1 Melee . | . . . . . Projectile 1 | . . . . 1 AOE . | . . . . . Terrain Rammed . | . . . . . Walls Destroyed . | . . . . . Machines Disabled . | . . . . . Actions | -11 -10 -10 -10 -9 --------- Run | Yrd Mat Min Exi Min Total 802 | 66 246 109 233 148 Wait 26 | . 19 2 . 5 Move 683 | 43 188 103 225 124 Hop . | . . . . . Pick Up 17 | 7 9 . 1 . Fast Attach 1 | . . . 1 . Attach 11 | 7 . . 2 2 Detach . | . . . . . Swap 4 | . 4 . . . Drop 7 | . 2 . 4 1 Fire 53 | 9 24 4 . 16 Melee . | . . . . . Ram . | . . . . . Kick . | . . . . . Crush . | . . . . . Escape Stasis . | . . . . . Rewire . | . . . . . Trap . | . . . . . Miscellaneous . | . . . . . Route ------- -11/Scrapyard -10/Materials -10/Mines (discovered 3 exits: Mat x2 / *Exi) -10/Exiles -9/Mines History --------- Turn | Location | Event 7 | -11/Scrapyard | Discovered new exit (range 16) 78 | -11/Scrapyard | Entered Materials 310 | -10/Materials | Discovered new exit (range 6) 322 | -10/Materials | Build established: Mutant 373 | -10/Materials | Entered Mines 485 | -10/Mines | Identified exit to Materials 501 | -10/Mines | Deemed a non-threat by the Exiles lab entrance 501 | -10/Mines | Discovered new exit (range 5) 506 | -10/Mines | Entered Exiles 539 | -10/Exiles | Met 8R-AWN 557 | -10/Exiles | Met EX-HEX 594 | -10/Exiles | Met EX-BIN 610 | -10/Exiles | Aligned with FarCom system 611 | -10/Exiles | Given EX-Vault access code 639 | -10/Exiles | Opened EX-Vault 645 | -10/Exiles | Found Prototype Device 645 | -10/Exiles | Identified Chronowheel 645 | -10/Exiles | Activated Chronowheel 645 | -10/Exiles | Spacetime reconverged on an earlier point 656 | -10/Exiles | Found Prototype Flight Unit 682 | -10/Exiles | Warned to stay clear of 0b10 Research branches 716 | -10/Exiles | Met EX-DEC 759 | -10/Exiles | Discovered new exit (range 11) 773 | -10/Exiles | Left Exiles lab with Flying Fortress v7 773 | -10/Exiles | Entered Mines 798 | -9/Mines | Assembled infested the area 865 | -9/Mines | Lost 4 parts (1n1u2w) 931 | -9/Mines | Core integrity fell below 50% 947 | -9/Mines | Released all parts (4) 952 | -9/Mines | Core integrity fell below 20% 955 | -9/Mines | Destroyed by G-34 Mercenary with Small Laser Last Messages --------------- 00819_ as-88597 knocked back. 00819_ as-83030 knocked back. 00828_ Lgt. Cannon destroyed. 00828_ as-83030 destroyed. 00829_ Hover Unit destroyed. 00832_ Lgt. Cannon destroyed. 00833_ as-40777 destroyed. 00833_ as-92437 destroyed. 00834_ Seismic Detector destroyed. 00835_ as-88597 destroyed. 00838_ K-01 Serf collects debris. 00845_ U-05 Engineer lays Concrete. 00849_ K-01 Serf collects debris. 00916_ Seismic Survey Station disabled. 00936_ Ion Engine destroyed. 00946_ Dropped Heat Sink. 00947_ Released Assault Rifle. 00947_ Released Hover Unit. 00947_ Released Sml. Storage Unit. 00947_ Released Sml. Laser. Map ----- +----------------------------------------------------+ | ?????????###### ##???????????????????????? | | ??# #???????????????????????? | | ?????????######### # #??????????????????????? | | ?????????????????# ## #?????????????????????? | | ??? ?????????????# #?# #?????????????????????? | | ???# ????????##### #?? ##?????????????????????? | | ????# ??????# #???####??????????????????????? | | ???## ?????# #####?????????????????????????????? | | ???# ##### #?????????????????????????????????? | | ???# ##????????????????????????????????? | | ???# #????????????????????????????????? | | ???# #### #????????????????????????????????? | | ???#???????# #????????????????????????????????? | | ????# ##### ##???????????????????????????????? | | ????# #??####?????????????????????????? | | ????# ###### #?## ##????????????????????????? | | ????????????## #### #????????????????????????? | | ?????????????# ### #????????????????????????? | | ?????????????# ## ##???????????????????????? | | ?????????????# ## ####????????????????????? | | ?????????????# ##???????????????????? | | ?????????????###### #???????????????????? | | ??????????????????## #???????????????????? | | ???????????????????## ##????????????g??????? | | ????????????????????## ##?###???????????????? | | ?????????????????????# @ #?# ?????????b?????? | | ?????????????????????## #?# #???????????????? | | ??????????????????????## ### ##??????????????? | | ???????????????????????## ## ##?????????????? | | ????????????????????????# #######???????? | | ????????????????????????## #???????? | | ?????????????????????????## #???????? | | ??????????????????????????#### g ##???????? | | ?????????????????????????????##g """ ##????????? | | ?????????????????????????????## g""" ##?????????? | | ?????????????????????????????# " " ##??????????? | | ?????????????????????????????# #???????????? | | ?????????????????????????????## ##???????????? | | ??????????????????????????????# [ ##????????????? | | ??????????????????????????????#![=##?????????????? | | ??????????????????????????????##!##??????????????? | | ???????????????????????????????###???????????????? | | ?????????????????????????????????????????????????? | | ?????????????????????????????????????????????????? | | | | | | | | | | | | | +----------------------------------------------------+ Best States ------------- Heat Dissipation 25 Energy Generation 10 Energy Capacity 250 Matter Stores 188 Matter Capacity 300 Sight Range 16 Terrain Scan Density 10 Evasion (%) 50 Item Schematics ----------------- None Robot Schematics ------------------ None Fabricated ------------ Nothing Alien Tech Used ----------------- None Achievements -------------- None Challenges ------------ None Game ------ Seed ImpulseSurveybotThruster Manual? 0 Play Time 00:14:33 Cumulative 60.8 hours Start 2025.03.01 @ 13:57:20 End 2025.03.01 @ 14:14:55 Sessions 1 Manual Loads 0 Difficulty Rogue Special Mode None Game No. 99 Rogue 99 Adventurer 0 Explorer 0 Win Type - Total 0 Types 0/0/0/0/0/0/0/0/0 Lore% 19 Gallery% 39 Achievement% 33 Wizard Run 0 Options --------- Layout 0 ASCII 0 Keyboard 0 Movement Mouse Keybinds 0 Fullscreen 2 Font 18/SmallcapsGlow Map View 38x25 Zoom Use 98% Tactical HUD 1 Map Filters NONE Filters NONE Steam 1 RUN: 0e23d80e-3238-4e85-9231-57e9b72141de